{"text_format":"3","workbook":"xlsx","n_sheets":1,"sheets":["РУС. группа тат. яз. 4-11 кл."],"read":"whole","date_system":"1900"}

{"sheet":"РУС. группа тат. яз. 4-11 кл.","index":0,"n_rows":43,"n_cols":10,"rows_kept":43}
["№","Наименование ОО","Фамилия","Имя","Класс обучения","Балл","Добавлено баллов по итогам апелляций","Итоговый баллалл","Максимальный балл","Статус"]
[1,"Муниципальное бюджетное общеобразовательное учреждение «Нижнемактаминская средняя общеобразовательная школа №2» Альметьевского муниципального района Республики Татарстан","Козина","Екатерина",4,44.5,null,{"$f":"F2","v":44.5},63,"Призер"]
[2,"Муниципальное автономное общеобразовательное учреждение \"Средняя общеобразовательная школа №10 с углубленным изучением отдельных предметов\" города Альметьевска РТ","Шилкина","Амелия",4,29.5,null,29.5,63,"Участник"]
[3,"Муниципальное бюджетное общеобразовательное учреждение «Средняя общеобразовательная школа №1 им. М.К.Тагирова» Альметьевского муниципального района РТ","Реутова","Ульяна",4,44.5,null,44.5,63,"Призер"]
[4,"Муниципальное бюджетное общеобразовательное учреждение «Средняя общеобразовательная школа №12» г.Альметьевска Республики Татарстан","Николаева","Влада",4,32,null,32,63,"Участник"]
[5,"Муниципальное автономное общеобразовательное учреждение \"Лицей №2\" г.Альметьевска Республики Татарстан","Рехлова","Элла",4,61,null,61,63,"Победитель"]
[6,"Муниципальное бюджетное общеобразовательное учреждение «Средняя общеобразовательная школа №1 им. М.К.Тагирова» Альметьевского муниципального района РТ","Аноркулова","Фарзона",4,51,null,51,63,"Призер"]
[7,"Муниципальное бюджетное общеобразовательное учреждение «Нижнемактаминская средняя общеобразовательная школа №2» Альметьевского муниципального района Республики Татарстан","Айткулова","Динара",5,47,null,47,80,"Участник"]
[8,"Муниципальное бюджетное общеобразовательное учреждение «Средняя общеобразовательная школа №1 им. М.К.Тагирова» Альметьевского муниципального района РТ","Ибрагимова","Айсель",5,60,null,60,80,"Призер"]
[9,"Муниципальное автономное общеобразовательное учреждение \"Лицей №2\" г.Альметьевска Республики Татарстан","Устюжанина","Арина",5,60,null,60,80,"Призер"]
[10,"Муниципальное автономное общеобразовательное учреждение \"Средняя общеобразовательная школа №10 с углубленным изучением отдельных предметов\" города Альметьевска РТ","Винокуров","Матвей",5,53,null,53,80,"Участник"]
[11,"Муниципальное бюджетное общеобразовательное учреждение «Средняя общеобразовательная школа №13» г. Альметьевска Республики Татарстан","Бечелова","Малика",5,78,null,78,80,"Победитель"]
[12,"Муниципальное бюджетное общеобразовательное учреждение «Средняя общеобразовательная школа №3» г. Альметьевска Республики Татарстан","Инджаев","Сенан",5,66.5,null,66.5,80,"Призер"]
[13,"Муниципальное бюджетное общеобразовательное учреждение «Нижнемактаминская средняя общеобразовательная школа №2» Альметьевского муниципального района Республики Татарстан","Айвазова","Фидан",6,31,null,31,80,"Участник"]
[14,"МБОУ «Средняя общеобразовательная школа №15» г.Альметьевска Республики Татарстан","Воропаева","София",6,16,null,16,80,"Участник"]
[15,"МБОУ «Средняя общеобразовательная школа №15» г.Альметьевска Республики Татарстан","Пакшинцева","Владислава",6,30,null,30,80,"Участник"]
[16,"Муниципальное бюджетное общеобразовательное учреждение «Средняя общеобразовательная школа №1 им. М.К.Тагирова» Альметьевского муниципального района РТ","Давлятова","Аниса",6,25,null,25,80,"Участник"]
[17,"МБОУ «Средняя общеобразовательная школа №15» г.Альметьевска Республики Татарстан","Курманаева","Ангелина",6,23,null,23,80,"Участник"]
[18,"муниципальное бюджетное общеобразовательное учреждение «Средняя общеобразовательная школа №20» г. Альметьевска Республики Татарстан","Колесников","Данила",6,13,null,13,80,"Участник"]
[19,"муниципальное бюджетное общеобразовательное учреждение «Средняя общеобразовательная школа №20» г. Альметьевска Республики Татарстан","Усманов","Сагдакром",7,31,null,31,82,"Участник"]
[20,"Муниципальное автономное общеобразовательное учреждение \"Лицей-интернат №1\" г. Альметьевска Республики Татарстан","Козиев","Исламбек",7,34,null,34,82,"Участник"]
[21,"Муниципальное автономное общеобразовательное учреждение «Гимназия №5» г. Альметьевска РТ","Соколов","Виталий",7,35,null,35,82,"Участник"]
[22,"Муниципальное автономное общеобразовательное учреждение \"Лицей-интернат №1\" г. Альметьевска Республики Татарстан","Денисов","Даниил",7,45,null,45,82,"Призер"]
[23,"Муниципальное бюджетное общеобразовательное учреждение «Нижнемактаминская средняя общеобразовательная школа №2» Альметьевского муниципального района Республики Татарстан","Макасина","Полина",8,51,null,51,71,"Призер"]
[24,"Муниципальное бюджетное общеобразовательное учреждение «Средняя общеобразовательная школа №25 им. 70-летия нефти Татарстана» г. Альметьевска РТ","Симонова","Виктория",8,45,null,45,71,"Призер"]
[25,"Муниципальное бюджетное общеобразовательное учреждение «Средняя общеобразовательная школа №12» г.Альметьевска Республики Татарстан","Логинова","Авелина",8,36,null,36,71,"Участник"]
[26,"Частное общеобразовательное учреждение «Средняя школа №23 «Менеджер»","Медведева","Мария",8,52,null,52,71,"Победитель"]
[27,"МБОУ «Средняя общеобразовательная школа №15» г.Альметьевска Республики Татарстан","Маркушин","Глеб",8,17,null,17,71,"Участник"]
[28,"Муниципальное бюджетное общеобразовательное учреждение «Средняя общеобразовательная школа №20» г. Альметьевска Республики Татарстан","Лепилова","Диана",8,29,null,29,71,"Участник"]
[29,"Муниципальное автономное общеобразовательное учреждение \"Средняя общеобразовательная школа №10 с углубленным изучением отдельных предметов\" города Альметьевска РТ","Оганесян ","Арсен",8,44,null,44,71,"Участник"]
[30,"Муниципальное бюджетное общеобразовательное учреждение «Средняя общеобразовательная школа №20» г. Альметьевска Республики Татарстан","Бадеев","Ярослав",8,17,null,17,71,"Участник"]
[31,"Муниципальное бюджетное общеобразовательное учреждение «Нижнемактаминская средняя общеобразовательная школа №2» Альметьевского муниципального района Республики Татарстан","Палян","Анаит",9,50,null,50,80,"Участник"]
[32,"Муниципальное автономное общеобразовательное учреждение \"Лицей-интернат №1\" г. Альметьевска Республики Татарстан","Пайвандов","Амир",9,60,null,60,80,"Победитель"]
[33,"Муниципальное автономное общеобразовательное учреждение \"Лицей-интернат №1\" г. Альметьевска Республики Татарстан","Гаврилов","Максим",9,52,null,52,80,"Призер"]
[34,"Муниципальное бюджетное общеобразовательное учреждение «Средняя общеобразовательная школа №4» г.Альметьевска Республики Татарстан","Сулаймонова","Гулчехра",9,56,null,56,80,"Призер"]
[35,"Муниципальное бюджетное общеобразовательное учреждение «Средняя общеобразовательная школа №24» г. Альметьевска Республики Татарстан","Кабанова","Виктория",9,46,null,46,80,"Участник"]
[36,"Муниципальное бюджетное общеобразовательное учреждение «Средняя общеобразовательная школа №13» г. Альметьевска Республики Татарстан","Агаларов","Чингиз",9,25,null,25,80,"Участник"]
[37,"Муниципальное автономное общеобразовательное учреждение \"Лицей-интернат №1\" г. Альметьевска Республики Татарстан","Крутин","Тимур",10,89,null,89,117,"Победитель"]
[38,"Муниципальное автономное общеобразовательное учреждение \"Лицей №2\" г. Альметьевска Республики Татарстан","Евлампиева","Валерия ",10,75,null,75,117,"Призер"]
[39,"Муниципальное автономное общеобразовательное учреждение «Средняя общеобразовательная школа №17»г. Альметьевска Республики Татарстан","Петрякова","Милена",11,122,null,122,131,"Победитель"]
[40,"Муниципальное бюджетное общеобразовательное учреждение «Средняя общеобразовательная школа №3» г. Альметьевска Республики Татарстан","Каримова","Азиза",11,115,null,115,131,"Призер"]
[41,"муниципальное бюджетное общеобразовательное учреждение «Средняя общеобразовательная школа №20» г. Альметьевска Республики Татарстан","Полякова","Екатерина",11,28.5,null,28.5,131,"Участник"]
[42,"Муниципальное бюджетное общеобразовательное учреждение «Средняя общеобразовательная школа №1 им. М.К.Тагирова» Альметьевского муниципального района РТ","Туяшева","Зарина",11,68,null,68,131,"Участник"]